Cogmind - Beta 11.1 @@@ ROGUE MODE // 2022.07.18 @ 20:11:24 Player: Candesce Result: Self-destructed Performance ------------- Evolutions (1) 500 Regions Visited (3) 600 Robots Destroyed (20) 100 Value Destroyed (398) 398 Prototype IDs (4) 80 Alien Tech Used (0) 0 Bonus (-39) -39 TOTAL SCORE: 1639 Bonus ------- Friendly Fire -39 Cogmind --------- Core Integrity 346/400 Matter 198/300 Energy 99/100 System Corruption 0% Temperature Cool (11) Movement Core (50) Location -9/Materials Parts ------- > --- POWER (1) -------- (None) > --- PROPULSION (2) --- Wheel > --- UTILITY (4) ------ Weight Redist. System Machine Analyzer Improved Targeting Computer Improved Targeting Computer > --- WEAPON (2) ------- Heavy Assault Rifle Light Cannon > --- INVENTORY (5) ---- Light Nuclear Core Sensor Array Grenade Launcher Peak State ------------ > --- POWER ------------ Light Ion Engine > --- PROPULSION ------- Light Treads Wheel > --- UTILITY ---------- Weight Redist. System Machine Analyzer Improved Targeting Computer Improved Targeting Computer > --- WEAPON ----------- Heavy Assault Rifle Light Cannon > --- INVENTORY -------- Light Nuclear Core Sensor Array Grenade Launcher [Rating: 15] Favorites ----------- Power Light Ion Engine Engine Light Ion Engine Propulsion Light Treads Treads Light Treads Wheel Wheel Utility Improved Targeting Computer Device Weight Redist. System Processor Improved Targeting Computer Protection Light Armor Plating Weapon Medium Laser Energy Gun Medium Laser Ballistic Gun Heavy Assault Rifle Ballistic Cannon Light Cannon Launcher Grenade Launcher Build | -11 -10 -10 -9 ------- Run | Scr Mat Min Mat Slots Evolved 2 | . . . 2 Power . | . . . . Propulsion . | . . . . Utility 2 | . . . 2 Weapon . | . . . . Parts Attached 23 | 4 11 4 4 Power 1 | . 1 . . Engine 1 | . 1 . . Core . | . . . . Reactor . | . . . . Propulsion 5 | 2 3 . . Treads 4 | 2 2 . . Leg . | . . . . Wheel 1 | . 1 . . Hover . | . . . . Flight . | . . . . Utility 8 | 1 3 2 2 Device 3 | 1 1 1 . Storage . | . . . . Processor 4 | . 2 . 2 Hackware . | . . . . Protection 1 | . . 1 . Artifact . | . . . . Weapon 9 | 1 4 2 2 Energy Gun 3 | 1 1 1 . Energy Cannon . | . . . . Ballistic Gun 2 | . . 1 1 Ballistic Cannon 1 | . 1 . . Launcher 3 | . 2 . 1 Special Weapon . | . . . . Impact Weapon . | . . . . Slashing Weapon . | . . . . Piercing Weapon . | . . . . Special Melee Weapon . | . . . . Unidentified Prototypes . | . . . . Parts Lost 4 | . 2 . 2 Power 1 | . . . 1 Propulsion 2 | . 1 . 1 Utility 1 | . 1 . . Weapon . | . . . . Highest Loss Streak 2 | . 2 . 2 To Critical Strikes . | . . . . Average Slot Usage (%) 83 | . 71 100 96 Engine 6 | . 2 14 9 Treads 19 | . 24 14 8 Wheel 6 | . . 14 11 Device 12 | . 13 12 11 Processor 15 | . 13 14 33 Energy Gun 8 | . 13 . . Ballistic Gun 5 | . . 13 11 Ballistic Cannon 6 | . 1 14 11 Naked Turns . | . . . . Heaviest Build 9 | 3 9 9 9 Greatest Support 9 | 3 9 9 9 Greatest Overweight (x) . | . . . . Average Overweight (x) . | . . . . Largest Inventory Capacity 5 | 5 5 5 5 Average Capacity 5 | 5 5 5 5 Most Carried 5 | 1 5 5 4 Average Carried 4 | . 4 4 3 Final Capacity 5 | 5 5 5 5 Final Carried 5 | 1 5 5 3 Class Distribution -------------------- 89% | Mutant 10% | Scavenger-Mutant Dominant Class ---------------- Mutant | -10/Materials Mutant | -10/Mines Scavenger-Mutant | -9/Materials Resources | -11 -10 -10 -9 ----------- Run | Scr Mat Min Mat Matter Collected 450 | 240 94 112 4 Remotely . | . . . . Salvage Created 515 | 147 292 38 38 Parts 34 | 6 22 2 4 Haulers Intercepted 1 | . 1 . . Recyclers Shooed 1 | 1 . . . Parts Field Recycled . | . . . . Retrieved Matter . | . . . . Parts Self-Destructed . | . . . . Prevented . | . . . . Kills | -11 -10 -10 -9 ------- Run | Scr Mat Min Mat Combat Hostiles Destroyed 13 | . 8 1 4 Guns 4 | . 4 . . Cannons 2 | . 1 1 . AOE 7 | . 3 . 4 Classes Destroyed 7 | 2 5 . . Tunneler 3 | 3 . . . Hauler 1 | . 1 . . Recycler 1 | 1 . . . Mechanic 1 | . 1 . . Watcher 1 | . 1 . . Swarmer 7 | . 3 . 4 Grunt 6 | . 5 1 . Best Kill Streak 6 | 2 6 1 4 Combat Bots Only 4 | . 4 1 4 Max Kills in Single Turn 2 | 1 2 1 2 Gunslinging . | . . . . Exploded 2 | . 2 . 2 Melee . | . . . . Uniques/NPCs Destroyed . | . . . . Combat | -11 -10 -10 -9 -------- Run | Scr Mat Min Mat Damage Taken 790 | . 449 103 238 Core 135 | . 53 28 54 Absorbed by Shields . | . . . . Core Remaining (%) 83 | 100 . 67 . Volleys Fired 75 | 12 42 6 15 Largest 1 | 1 1 1 1 Hottest 50 | 50 50 35 35 Shots Fired 75 | 12 42 6 15 Gun 47 | 12 35 . . Cannon 23 | . 4 6 13 Launcher 5 | . 3 . 2 Special . | . . . . Kinetic 23 | . 4 6 13 Thermal 47 | 12 35 . . Explosive 5 | . 3 . 2 Electromagnetic . | . . . . Robot Hit Streak 15 | 8 15 5 11 Robot Miss Streak 2 | 1 2 1 1 Penetration Max . | . . . . Secondary Targets . | . . . . Shots Hit Robots 57 | 10 30 5 12 Core Hits 29 | 5 18 1 5 Critical Kills . | . . . . Critical Parts Destroyed . | . . . . Critical Strikes 6 | . 4 1 1 Burn 3 | . 3 . . Blast 3 | . 1 1 1 Melee Attacks . | . . . . Impact . | . . . . Slashing . | . . . . Piercing . | . . . . Sneak Attacks . | . . . . Combat Hostiles . | . . . . Follow-up Attacks . | . . . . Damage Inflicted 1322 | 138 612 89 483 Guns 489 | 138 351 . . Cannons 325 | . 31 89 205 Explosions 508 | . 230 . 278 Melee . | . . . . Ramming . | . . . . Kinetic 325 | . 31 89 205 Thermal 489 | 138 351 . . Explosive 508 | . 230 . 278 Electromagnetic . | . . . . Impact . | . . . . Slashing . | . . . . Piercing . | . . . . Highest Corruption . | . . . . Average Corruption . | . . . . Corruption Purged . | . . . . Corruption Blocked . | . . . . Overload Shots . | . . . . Overflow Damage 28 | . . . 28 Projectiles . | . . . . Explosions 28 | . . . 28 Melee . | . . . . Knockbacks 1 | . . 1 . Impact . | . . . . Kinetic 1 | . . 1 . Secondary . | . . . . Self-Inflicted Damage 66 | . 51 . 15 Shots 3 | . 2 . 1 Rammed . | . . . . Targets Rammed . | . . . . Kicked . | . . . . Crushed . | . . . . Highest Temperature 132 | 25 132 27 16 Average Temperature 53 | 25 69 14 6 Received Heat Transfer 387 | . 228 81 78 Siege Activations . | . . . . Robots Corrupted . | . . . . Combat Hostiles . | . . . . Parts Fried . | . . . . Impact Corruptions . | . . . . Robots Melted . | . . . . Combat Hostiles . | . . . . Parts Melted 2 | 1 1 . . Heat Transferred 1665 | 407 1258 . . Parts Sabotaged . | . . . . Parts Stolen . | . . . . Parts Stripped . | . . . . Power Chain Reactions . | . . . . Missiles Intercepted . | . . . . Alert | -11 -10 -10 -9 ------- Run | Scr Mat Min Mat Peak Influence 267 | 20 239 198 267 Initial 93 | . 13 93 76 Average 106 | 8 96 139 136 Maximum Alert Level 1 | . 1 . 1 Low Security (%) 91 | 100 89 100 71 Level 1 8 | . 10 . 28 Level 2 . | . . . . Level 3 . | . . . . Level 4 . | . . . . Level 5 . | . . . . High Security . | . . . . Max Security . | . . . . Squads Dispatched 4 | . 2 . 2 Investigation 1 | . 1 . . Extermination . | . . . . Reinforcement 3 | . 1 . 2 Assault . | . . . . Garrison . | . . . . Intercept . | . . . . Searches Triggered . | . . . . Construction Impeded . | . . . . Haulers Reinforced . | . . . . Active Scanning Responses . | . . . . Cargo Convoy Interrupts . | . . . . Stealth | -11 -10 -10 -9 --------- Run | Scr Mat Min Mat Distress Signals 4 | . 2 1 1 Communications Jammed . | . . . . Distress Signals . | . . . . Times Spotted 41 | . 18 12 11 Peak Tracking Total 9 | . 4 4 9 Tactical Retreats 7 | . 2 4 1 Traps | -11 -10 -10 -9 ------- Run | Scr Mat Min Mat Traps Triggered . | . . . . Indirectly . | . . . . Trap Hack Attempts . | . . . . Triggered . | . . . . Disarmed . | . . . . Reprogrammed . | . . . . Reused . | . . . . Traps Extracted . | . . . . Installed . | . . . . Triggered . | . . . . Machines | -11 -10 -10 -9 ---------- Run | Scr Mat Min Mat Machines Disabled 4 | . 3 . 1 Max in Single Turn 1 | . 1 . 1 Machines Sabotaged . | . . . . Garrisons Compromised . | . . . . Overloaded Fab Kills . | . . . . Hacking | -11 -10 -10 -9 --------- Run | Scr Mat Min Mat Machines Accessed 11 | . 9 . 2 Terminals 9 | . 7 . 2 Fabricators . | . . . . Repair Stations 1 | . 1 . . Recycling Units 1 | . 1 . . Scanalyzers . | . . . . Garrison Access . | . . . . Total Hacks 38 | . 33 . 5 Successful 18 | . 16 . 2 Failed 20 | . 17 . 3 Catastrophic 1 | . 1 . . Database Lockouts . | . . . . Manual 24 | . 20 . 4 Terminals 34 | . 29 . 5 Fabricators . | . . . . Repair Stations 2 | . 2 . . Recycling Units 2 | . 2 . . Scanalyzers . | . . . . Garrison Access . | . . . . Terminal Hacks 10 | . 9 . 1 Part Schematic 1 | . 1 . . Prototype ID Bank 2 | . 1 . 1 Terminal Index 1 | . 1 . . Repair Station Index 1 | . 1 . . Unreport Threat 1 | . 1 . . Locate Traps 1 | . 1 . . Hauler Manifests 1 | . 1 . . Zone Layout 2 | . 2 . . Fabricator Hacks . | . . . . Repair Station Hacks . | . . . . Recycling Unit Hacks 1 | . 1 . . Report Inventory 1 | . 1 . . Scanalyzer . | . . . . Garrison Access Hacks . | . . . . Unauthorized Hacks 7 | . 6 . 1 Terminals 6 | . 5 . 1 Assimilate 1 | . 1 . . Botnet 3 | . 3 . . Operators 2 | . 1 . 1 Fabricators . | . . . . Repair Stations . | . . . . Recycling Units 1 | . 1 . . Tunnel 1 | . 1 . . Scanalyzers . | . . . . Garrison Access . | . . . . Data Cores Recovered . | . . . . Used . | . . . . Hacking Detections 10 | . 9 . 1 Full Trace Events 1 | . 1 . . Feedback Events . | . . . . Feedback Blocked . | . . . . Robot Schematics Acquired . | . . . . Robots Built . | . . . . Authchips . | . . . . Time . | . . . . Total Robot Build Rating . | . . . . Part Schematics Acquired 1 | . 1 . . Parts Built . | . . . . Authchips . | . . . . Time . | . . . . Total Part Build Rating . | . . . . Parts Repaired . | . . . . Time . | . . . . Parts Recycled . | . . . . Recycled Matter . | . . . . Retrieved Matter . | . . . . Retrieved Components . | . . . . Parts Scanalyzed . | . . . . Part Schematics Acquired . | . . . . Parts Damaged . | . . . . Bothacking | -11 -10 -10 -9 ------------ Run | Scr Mat Min Mat Used RIF Installer . | . . . . Robots Hacked . | . . . . Non-combat . | . . . . Combat . | . . . . Robot Hacks Applied . | . . . . Relay Couplers Released . | . . . . Fabnet Peak Effective % . | . . . . Robots Rewired . | . . . . Allies Hacked . | . . . . Hacks Repelled . | . . . . Allies | -11 -10 -10 -9 -------- Run | Scr Mat Min Mat Total Allies 1 | . 1 . . Largest Group 1 | . 1 1 . Highest-Rated Group 10 | . 10 10 . Highest-Rated Ally 10 | . 10 10 . Total Orders 1 | . . 1 . STAY 1 | . . 1 . Ally Attacks . | . . . . Total Damage . | . . . . Kills . | . . . . Allies Corrupted . | . . . . Allies Melted . | . . . . Intel | -11 -10 -10 -9 ------- Run | Scr Mat Min Mat Robot Analysis Total . | . . . . Derelict Logs Recovered 1 | . . 1 . Drone Launches . | . . . . Drone Recoveries . | . . . . Exploration | -11 -10 -10 -9 ------------- Run | Scr Mat Min Mat Turns Passed 970 | 74 512 288 96 Spaces Moved 1226 | 80 648 400 98 Core 1226 | 80 648 400 98 Treads . | . . . . Legs . | . . . . Wheels . | . . . . Hover . | . . . . Flight . | . . . . Fastest Speed 50 | 50 50 50 50 Average Speed 50 | 50 50 50 50 Slowest Speed 50 | 50 50 50 50 Overloaded Moves . | . . . . Propulsion Burnouts . | . . . . Robots Hopped . | . . . . Cave-ins Triggered . | . . . . Exploration Rate (%) 36 | 3 91 34 18 Regions Visited 3 Branch Regions 1 Pre-discovered Areas 1 | . 1 . . Known Exits Taken . | . . . . Unknown Exits Taken 3 | 1 1 1 . Scrap Searched 1 | . . 1 . Spaces Dug 11 | . 4 . 7 Terrain Destroyed 21 | . 13 . 8 Melee . | . . . . Projectile . | . . . . AOE 21 | . 13 . 8 Terrain Rammed . | . . . . Walls Destroyed . | . . . . Machines Disabled . | . . . . Actions | -11 -10 -10 -9 --------- Run | Scr Mat Min Mat Total 1500 | 99 791 481 129 Wait 162 | 3 80 67 12 Move 1223 | 79 647 399 98 Hop . | . . . . Pick Up 10 | 1 7 2 . Fast Attach 11 | 4 6 1 . Attach 3 | . 1 . 2 Detach . | . . . . Swap 9 | . 4 3 2 Drop 7 | . 4 3 . Fire 75 | 12 42 6 15 Melee . | . . . . Ram . | . . . . Kick . | . . . . Crush . | . . . . Escape Stasis . | . . . . Rewire . | . . . . Trap . | . . . . Miscellaneous . | . . . . Route ------- -11/Scrapyard -10/Materials (discovered 4 exits: *Mat x3 / [*Min]) -10/Mines (discovered 2 exits: *Mat x2) -9/Materials History --------- Turn | Location | Event 9 | -11/Scrapyard | Discovered new exit (range 16) 75 | -11/Scrapyard | Entered Materials 186 | -10/Materials | Discovered new exit (range 3) 308 | -10/Materials | Discovered new exit (range 12) 318 | -10/Materials | Build established: Mutant 332 | -10/Materials | Discovered new exit (range 3) 544 | -10/Materials | Discovered new exit (range 14) 587 | -10/Materials | Entered Mines 587 | -10/Mines | Accompanied by 1 ally 590 | -10/Mines | Joined a pair of Derelicts in attacking an 0b10 outpost 610 | -10/Mines | Assembled infested the area 615 | -10/Mines | Assisted by a Guerilla fighting off Assembled 702 | -10/Mines | Discovered new exit (range 10) 705 | -10/Mines | Discovered new exit (range 15) 727 | -10/Mines | Received a Rocket Launcher from a helpful Derelict 866 | -10/Mines | Learned Materials stockpile data 875 | -10/Mines | Entered Materials 875 | -9/Materials | Evolved 2 slots: Utility x2 971 | -9/Materials | Self-destructed Last Messages --------------- Prc. Beam Rifle >>Trojan(Operators) Trojan loaded successfully. Testing... Operator tracking enabled and active. 00935_ K-01 Serf collects debris. 00937_ ALERT: Hostiles spotted, dispatching reinforcements to Terminal M008. 00939_ W-16 Scout sends out distress signal. 00939_ K-01 Serf collects debris. 00942_ S-10 Pest destroyed. 00944_ Material Compactor disabled. 00944_ Destroyed Flight Unit. 00944_ S-10 Pest destroyed. 00949_ >> Machine Analyzer network decryption results: 00949_ Scanalyzer x1 00954_ Lgt. Treads destroyed. 00963_ Lgt. Ion Engine destroyed. 00964_ Y-45 Defender Imp. Ion Engine blasted off. 00969_ Critical hit (Burn: +37). 00971_ R-06 Scavenger collects Imp. Ion Engine. Map ----- +----------------------------------------------------+ | ???????????????????????????????????????????????? | | ???????????????????????????????????????????????? | | ???????????????????????????????????????????????? | | ???????????????????????????????????????????????? | | ???????????????????????????????????????????????? | | ???????????????????????????????????????????????? | | ???????????????????????????????????????????????? | | ???????????????????????????????????????????????? | | ???????????????????????????????????????????????? | | ?o?????????????????????????????????????????????? | | ???????????????????????????????????????????????? | | ???????????????????????????????????????????????? | | ???????????????????????????????????????????????? | | ???????????????????????????????????????????????? | | ???????????????????????????????????????????????? | | ???????????????????????????????????????????????? | | ????????????????#?##?###???????????????????????? | | ?????????????#??# ? #??????????????????????? | | ?????????????# ?# #??????????????????????? | | ?????????????# ?# #??????????????????????? | | ?????????????# ?# [ #??????????????????????? | | ??????"S????## ?# #??????????????????????? | | ??????"""???# # """ #??????????????????????? | | ???????""???# / """"" #????????????#?????????? | | ????????????# # """"" ######## #?"""""""?? | | ????????????# # """"" #@%% #?"""""""?? | | ???#####+#### # """ g +?"""""""?? | | ?? # r #Yr% #?"""""""?? | | ?? ##+########+#### #?"""""""?? | | ?? #???? #??? ##?????????? | | ???????# ^ !== #??? #????????????????? | | ???????# !== # # #????????????????? | | ???????+ != ! "" #????????????????? | | ???????# %%* ""#????????????????? | | ???????# =% [ """"#????????????????? | | ???????######+#### """?????????????????? | | ?????????????????### ""??????????????????? | | ???????????????????# #! ??????????????????? | | ???????????????????# #### ####?????????????????? | | ???????????????????# #???# ????????????????!??? | | ???????????????????# #?????"""?????????????????? | | ???????????????????# #?????"""?????????????????? | | ???????????????????# #?????"""?????????????????? | | ???????????????#####+####??"""?????????????????? | | ???????????????# #??"""?????????????????? | | ??? ???????????# """ #??????????????????????? | | ??? ???????????# """ ##?#+##????????????????? | | ??? ???????????# """ #o ???????????? | | ??# ???????????# + T????????????? | | ??# ???????????# """ "" # ???????????? | +----------------------------------------------------+ Best States ------------- Heat Dissipation 28 Energy Generation 10 Energy Capacity 125 Matter Stores 300 Matter Capacity 300 Sight Range 16 Terrain Scan Range 16 Terrain Scan Density 10 Additional Mass Support 6 Armor Coverage 150 Evasion (%) 50 Targeting Accuracy 12 Recoil Reduction 2 Item Schematics ----------------- Hcp. Battery | -10/Materials | Hacked Robot Schematics ------------------ None Fabricated ------------ Nothing Alien Tech Used ----------------- None Achievements -------------- None Challenges ------------ None Game ------ Seed MissileParticleSteel Manual? 0 Play Time 00:27:57 Cumulative 46.1 hours Start 2022.07.18 @ 19:45:34 End 2022.07.18 @ 20:11:24 Sessions 1 Manual Loads 0 Difficulty Rogue Special Mode None Game No. 121 Rogue 121 Adventurer 0 Explorer 0 Win Type - Total 1 Types 0/0/0/1/0/0/0/0/0 Lore% 54 Gallery% 62 Achievement% 47 Wizard Run 0 Options --------- ASCII 0 Keyboard 0 Movement Numpad Keybinds 0 Fullscreen 1 Font 14/SmallcapsGlow Map View 84x54 Tactical HUD 1 Map Filters NONE Filters NONE Steam 1 RUN: f1404ded-419d-42a5-aec4-22223c6f1a23